{"text_format":"1","workbook":"xlsx","n_sheets":2,"sheets":["Форма ввода","Приборы"],"not_rendered":{"charts":0,"images":0,"macros":1,"external_links":0,"defined_names":6,"comments":0,"pivot_tables":0},"unopened":[],"bounds":{"document_bytes":16777216,"sheet_cells":100000,"rows_first":2000,"rows_last":500,"rows_between":2000,"halvings":0,"cell_chars":16384,"cell_head_chars":4096},"cells_cut":0,"cells_raw":0,"read":"whole","date_system":"1900"}

{"sheet":"Форма ввода","index":0,"n_rows":10,"n_cols":3,"rows_kept":10,"cut":false,"hidden":false,"merged":[]}
[]
["Дата визита"]
[]
["Аппликатор",null,"Иванов"]
[]
["Клиент"]
[]
["Оборудование"]
[]
["Серийный номер"]

{"sheet":"Приборы","index":1,"n_rows":33,"n_cols":14,"rows_kept":33,"cut":false,"hidden":false,"merged":[]}
["Инженер","Клиент","Оборудование","Серийник",null,"AppID","ClientID","InstrID","SerialID",null,"App","Client","Instr","Serial"]
["Иванов","Газпром","Canon 100",11111,null,{"$f":"IF(COUNTIF($A$2:A2,A2)=1,MAX($F$1:F1)+1,\"\")","v":1},{"$f":"IFERROR(IF(COUNTIFS($A$2:A2,'Форма ввода'!$C$4,$B$2:B2,B2)*(Привязка[[#This Row],[Инженер]]='Форма ввода'!$C$4)=1,MAX($G$1:G1)+1,\"\"),\"\")","v":1},{"$f":"IFERROR(IF(COUNTIFS($A$2:A2,'Форма ввода'!$C$4,$C$2:C2,C2)*(Привязка[[#This Row],[Инженер]]='Форма ввода'!$C$4)=1,MAX($H$1:H1)+1,\"\"),\"\")","v":1},{"$f":"IFERROR(IF(COUNTIFS($A$2:A2,'Форма ввода'!$C$4,$D$2:D2,D2)*(Привязка[[#This Row],[Инженер]]='Форма ввода'!$C$4)=1,MAX($I$1:I1)+1,\"\"),\"\")","v":1},null,{"$f":"IFERROR(INDEX(Привязка[Инженер],MATCH(ROW()-1,IDs[AppID],)),\" \")","v":"Иванов"},{"$f":"IFERROR(INDEX(Привязка[Клиент],MATCH(ROW()-1,IDs[ClientID],)),\" \")","v":"Газпром"},{"$f":"IFERROR(INDEX(Привязка[Оборудование],MATCH(ROW()-1,IDs[InstrID],)),\" \")","v":"Canon 100"},{"$f":"IFERROR(INDEX(Привязка[Серийник],MATCH(ROW()-1,IDs[SerialID],)),\" \")","v":11111}]
["Иванов","Газпром","Canon 100",22222,null,{"$f":"IF(COUNTIF($A$2:A3,A3)=1,MAX($F$1:F2)+1,\"\")","v":""},{"$f":"IFERROR(IF(COUNTIFS($A$2:A3,'Форма ввода'!$C$4,$B$2:B3,B3)*(Привязка[[#This Row],[Инженер]]='Форма ввода'!$C$4)=1,MAX($G$1:G2)+1,\"\"),\"\")","v":""},{"$f":"IFERROR(IF(COUNTIFS($A$2:A3,'Форма ввода'!$C$4,$C$2:C3,C3)*(Привязка[[#This Row],[Инженер]]='Форма ввода'!$C$4)=1,MAX($H$1:H2)+1,\"\"),\"\")","v":""},{"$f":"IFERROR(IF(COUNTIFS($A$2:A3,'Форма ввода'!$C$4,$D$2:D3,D3)*(Привязка[[#This Row],[Инженер]]='Форма ввода'!$C$4)=1,MAX($I$1:I2)+1,\"\"),\"\")","v":2},null,{"$f":"IFERROR(INDEX(Привязка[Инженер],MATCH(ROW()-1,IDs[AppID],)),\" \")","v":"Петров"},{"$f":"IFERROR(INDEX(Привязка[Клиент],MATCH(ROW()-1,IDs[ClientID],)),\" \")","v":"Лукойл"},{"$f":"IFERROR(INDEX(Привязка[Оборудование],MATCH(ROW()-1,IDs[InstrID],)),\" \")","v":"Canon 200"},{"$f":"IFERROR(INDEX(Привязка[Серийник],MATCH(ROW()-1,IDs[SerialID],)),\" \")","v":22222}]
["Иванов","Газпром","Canon 200",33333,null,{"$f":"IF(COUNTIF($A$2:A4,A4)=1,MAX($F$1:F3)+1,\"\")","v":""},{"$f":"IFERROR(IF(COUNTIFS($A$2:A4,'Форма ввода'!$C$4,$B$2:B4,B4)*(Привязка[[#This Row],[Инженер]]='Форма ввода'!$C$4)=1,MAX($G$1:G3)+1,\"\"),\"\")","v":""},{"$f":"IFERROR(IF(COUNTIFS($A$2:A4,'Форма ввода'!$C$4,$C$2:C4,C4)*(Привязка[[#This Row],[Инженер]]='Форма ввода'!$C$4)=1,MAX($H$1:H3)+1,\"\"),\"\")","v":2},{"$f":"IFERROR(IF(COUNTIFS($A$2:A4,'Форма ввода'!$C$4,$D$2:D4,D4)*(Привязка[[#This Row],[Инженер]]='Форма ввода'!$C$4)=1,MAX($I$1:I3)+1,\"\"),\"\")","v":3},null,{"$f":"IFERROR(INDEX(Привязка[Инженер],MATCH(ROW()-1,IDs[AppID],)),\" \")","v":"Сидоров"},{"$f":"IFERROR(INDEX(Привязка[Клиент],MATCH(ROW()-1,IDs[ClientID],)),\" \")","v":" "},{"$f":"IFERROR(INDEX(Привязка[Оборудование],MATCH(ROW()-1,IDs[InstrID],)),\" \")","v":" "},{"$f":"IFERROR(INDEX(Привязка[Серийник],MATCH(ROW()-1,IDs[SerialID],)),\" \")","v":33333}]
["Петров","Лукойл","Canon 100",44444,null,{"$f":"IF(COUNTIF($A$2:A5,A5)=1,MAX($F$1:F4)+1,\"\")","v":2},{"$f":"IFERROR(IF(COUNTIFS($A$2:A5,'Форма ввода'!$C$4,$B$2:B5,B5)*(Привязка[[#This Row],[Инженер]]='Форма ввода'!$C$4)=1,MAX($G$1:G4)+1,\"\"),\"\")","v":""},{"$f":"IFERROR(IF(COUNTIFS($A$2:A5,'Форма ввода'!$C$4,$C$2:C5,C5)*(Привязка[[#This Row],[Инженер]]='Форма ввода'!$C$4)=1,MAX($H$1:H4)+1,\"\"),\"\")","v":""},{"$f":"IFERROR(IF(COUNTIFS($A$2:A5,'Форма ввода'!$C$4,$D$2:D5,D5)*(Привязка[[#This Row],[Инженер]]='Форма ввода'!$C$4)=1,MAX($I$1:I4)+1,\"\"),\"\")","v":""},null,{"$f":"IFERROR(INDEX(Привязка[Инженер],MATCH(ROW()-1,IDs[AppID],)),\" \")","v":"Gegrby"},{"$f":"IFERROR(INDEX(Привязка[Клиент],MATCH(ROW()-1,IDs[ClientID],)),\" \")","v":" "},{"$f":"IFERROR(INDEX(Привязка[Оборудование],MATCH(ROW()-1,IDs[InstrID],)),\" \")","v":" "},{"$f":"IFERROR(INDEX(Привязка[Серийник],MATCH(ROW()-1,IDs[SerialID],)),\" \")","v":55555}]
["Иванов","Лукойл","Canon 200",55555,null,{"$f":"IF(COUNTIF($A$2:A6,A6)=1,MAX($F$1:F5)+1,\"\")","v":""},{"$f":"IFERROR(IF(COUNTIFS($A$2:A6,'Форма ввода'!$C$4,$B$2:B6,B6)*(Привязка[[#This Row],[Инженер]]='Форма ввода'!$C$4)=1,MAX($G$1:G5)+1,\"\"),\"\")","v":2},{"$f":"IFERROR(IF(COUNTIFS($A$2:A6,'Форма ввода'!$C$4,$C$2:C6,C6)*(Привязка[[#This Row],[Инженер]]='Форма ввода'!$C$4)=1,MAX($H$1:H5)+1,\"\"),\"\")","v":""},{"$f":"IFERROR(IF(COUNTIFS($A$2:A6,'Форма ввода'!$C$4,$D$2:D6,D6)*(Привязка[[#This Row],[Инженер]]='Форма ввода'!$C$4)=1,MAX($I$1:I5)+1,\"\"),\"\")","v":4},null,{"$f":"IFERROR(INDEX(Привязка[Инженер],MATCH(ROW()-1,IDs[AppID],)),\" \")","v":"ер"},{"$f":"IFERROR(INDEX(Привязка[Клиент],MATCH(ROW()-1,IDs[ClientID],)),\" \")","v":" "},{"$f":"IFERROR(INDEX(Привязка[Оборудование],MATCH(ROW()-1,IDs[InstrID],)),\" \")","v":" "},{"$f":"IFERROR(INDEX(Привязка[Серийник],MATCH(ROW()-1,IDs[SerialID],)),\" \")","v":66666}]
["Иванов","Газпром","Canon 200",66666,null,{"$f":"IF(COUNTIF($A$2:A7,A7)=1,MAX($F$1:F6)+1,\"\")","v":""},{"$f":"IFERROR(IF(COUNTIFS($A$2:A7,'Форма ввода'!$C$4,$B$2:B7,B7)*(Привязка[[#This Row],[Инженер]]='Форма ввода'!$C$4)=1,MAX($G$1:G6)+1,\"\"),\"\")","v":""},{"$f":"IFERROR(IF(COUNTIFS($A$2:A7,'Форма ввода'!$C$4,$C$2:C7,C7)*(Привязка[[#This Row],[Инженер]]='Форма ввода'!$C$4)=1,MAX($H$1:H6)+1,\"\"),\"\")","v":""},{"$f":"IFERROR(IF(COUNTIFS($A$2:A7,'Форма ввода'!$C$4,$D$2:D7,D7)*(Привязка[[#This Row],[Инженер]]='Форма ввода'!$C$4)=1,MAX($I$1:I6)+1,\"\"),\"\")","v":5},null,{"$f":"IFERROR(INDEX(Привязка[Инженер],MATCH(ROW()-1,IDs[AppID],)),\" \")","v":" "},{"$f":"IFERROR(INDEX(Привязка[Клиент],MATCH(ROW()-1,IDs[ClientID],)),\" \")","v":" "},{"$f":"IFERROR(INDEX(Привязка[Оборудование],MATCH(ROW()-1,IDs[InstrID],)),\" \")","v":" "},{"$f":"IFERROR(INDEX(Привязка[Серийник],MATCH(ROW()-1,IDs[SerialID],)),\" \")","v":" "}]
["Сидоров","Татнефть","Canon 100",77777,null,{"$f":"IF(COUNTIF($A$2:A8,A8)=1,MAX($F$1:F7)+1,\"\")","v":3},{"$f":"IFERROR(IF(COUNTIFS($A$2:A8,'Форма ввода'!$C$4,$B$2:B8,B8)*(Привязка[[#This Row],[Инженер]]='Форма ввода'!$C$4)=1,MAX($G$1:G7)+1,\"\"),\"\")","v":""},{"$f":"IFERROR(IF(COUNTIFS($A$2:A8,'Форма ввода'!$C$4,$C$2:C8,C8)*(Привязка[[#This Row],[Инженер]]='Форма ввода'!$C$4)=1,MAX($H$1:H7)+1,\"\"),\"\")","v":""},{"$f":"IFERROR(IF(COUNTIFS($A$2:A8,'Форма ввода'!$C$4,$D$2:D8,D8)*(Привязка[[#This Row],[Инженер]]='Форма ввода'!$C$4)=1,MAX($I$1:I7)+1,\"\"),\"\")","v":""},null,{"$f":"IFERROR(INDEX(Привязка[Инженер],MATCH(ROW()-1,IDs[AppID],)),\" \")","v":" "},{"$f":"IFERROR(INDEX(Привязка[Клиент],MATCH(ROW()-1,IDs[ClientID],)),\" \")","v":" "},{"$f":"IFERROR(INDEX(Привязка[Оборудование],MATCH(ROW()-1,IDs[InstrID],)),\" \")","v":" "},{"$f":"IFERROR(INDEX(Привязка[Серийник],MATCH(ROW()-1,IDs[SerialID],)),\" \")","v":" "}]
["Gegrby",null,null,null,null,{"$f":"IF(COUNTIF($A$2:A9,A9)=1,MAX($F$1:F8)+1,\"\")","v":4},{"$f":"IFERROR(IF(COUNTIFS($A$2:A9,'Форма ввода'!$C$4,$B$2:B9,B9)*(Привязка[[#This Row],[Инженер]]='Форма ввода'!$C$4)=1,MAX($G$1:G8)+1,\"\"),\"\")","v":""},{"$f":"IFERROR(IF(COUNTIFS($A$2:A9,'Форма ввода'!$C$4,$C$2:C9,C9)*(Привязка[[#This Row],[Инженер]]='Форма ввода'!$C$4)=1,MAX($H$1:H8)+1,\"\"),\"\")","v":""},{"$f":"IFERROR(IF(COUNTIFS($A$2:A9,'Форма ввода'!$C$4,$D$2:D9,D9)*(Привязка[[#This Row],[Инженер]]='Форма ввода'!$C$4)=1,MAX($I$1:I8)+1,\"\"),\"\")","v":""},null,{"$f":"IFERROR(INDEX(Привязка[Инженер],MATCH(ROW()-1,IDs[AppID],)),\" \")","v":" "},{"$f":"IFERROR(INDEX(Привязка[Клиент],MATCH(ROW()-1,IDs[ClientID],)),\" \")","v":" "},{"$f":"IFERROR(INDEX(Привязка[Оборудование],MATCH(ROW()-1,IDs[InstrID],)),\" \")","v":" "},{"$f":"IFERROR(INDEX(Привязка[Серийник],MATCH(ROW()-1,IDs[SerialID],)),\" \")","v":" "}]
["ер",null,null,null,null,{"$f":"IF(COUNTIF($A$2:A10,A10)=1,MAX($F$1:F9)+1,\"\")","v":5},{"$f":"IFERROR(IF(COUNTIFS($A$2:A10,'Форма ввода'!$C$4,$B$2:B10,B10)*(Привязка[[#This Row],[Инженер]]='Форма ввода'!$C$4)=1,MAX($G$1:G9)+1,\"\"),\"\")","v":""},{"$f":"IFERROR(IF(COUNTIFS($A$2:A10,'Форма ввода'!$C$4,$C$2:C10,C10)*(Привязка[[#This Row],[Инженер]]='Форма ввода'!$C$4)=1,MAX($H$1:H9)+1,\"\"),\"\")","v":""},{"$f":"IFERROR(IF(COUNTIFS($A$2:A10,'Форма ввода'!$C$4,$D$2:D10,D10)*(Привязка[[#This Row],[Инженер]]='Форма ввода'!$C$4)=1,MAX($I$1:I9)+1,\"\"),\"\")","v":""},null,{"$f":"IFERROR(INDEX(Привязка[Инженер],MATCH(ROW()-1,IDs[AppID],)),\" \")","v":" "},{"$f":"IFERROR(INDEX(Привязка[Клиент],MATCH(ROW()-1,IDs[ClientID],)),\" \")","v":" "},{"$f":"IFERROR(INDEX(Привязка[Оборудование],MATCH(ROW()-1,IDs[InstrID],)),\" \")","v":" "},{"$f":"IFERROR(INDEX(Привязка[Серийник],MATCH(ROW()-1,IDs[SerialID],)),\" \")","v":" "}]
[null,null,null,null,null,{"$f":"IF(COUNTIF($A$2:A11,A11)=1,MAX($F$1:F10)+1,\"\")","v":""},{"$f":"IFERROR(IF(COUNTIFS($A$2:A11,'Форма ввода'!$C$4,$B$2:B11,B11)*(Привязка[[#This Row],[Инженер]]='Форма ввода'!$C$4)=1,MAX($G$1:G10)+1,\"\"),\"\")","v":""},{"$f":"IFERROR(IF(COUNTIFS($A$2:A11,'Форма ввода'!$C$4,$C$2:C11,C11)*(Привязка[[#This Row],[Инженер]]='Форма ввода'!$C$4)=1,MAX($H$1:H10)+1,\"\"),\"\")","v":""},{"$f":"IFERROR(IF(COUNTIFS($A$2:A11,'Форма ввода'!$C$4,$D$2:D11,D11)*(Привязка[[#This Row],[Инженер]]='Форма ввода'!$C$4)=1,MAX($I$1:I10)+1,\"\"),\"\")","v":""},null,{"$f":"IFERROR(INDEX(Привязка[Инженер],MATCH(ROW()-1,IDs[AppID],)),\" \")","v":" "},{"$f":"IFERROR(INDEX(Привязка[Клиент],MATCH(ROW()-1,IDs[ClientID],)),\" \")","v":" "},{"$f":"IFERROR(INDEX(Привязка[Оборудование],MATCH(ROW()-1,IDs[InstrID],)),\" \")","v":" "},{"$f":"IFERROR(INDEX(Привязка[Серийник],MATCH(ROW()-1,IDs[SerialID],)),\" \")","v":" "}]
[null,null,null,null,null,{"$f":"IF(COUNTIF($A$2:A12,A12)=1,MAX($F$1:F11)+1,\"\")","v":""},{"$f":"IFERROR(IF(COUNTIFS($A$2:A12,'Форма ввода'!$C$4,$B$2:B12,B12)*(Привязка[[#This Row],[Инженер]]='Форма ввода'!$C$4)=1,MAX($G$1:G11)+1,\"\"),\"\")","v":""},{"$f":"IFERROR(IF(COUNTIFS($A$2:A12,'Форма ввода'!$C$4,$C$2:C12,C12)*(Привязка[[#This Row],[Инженер]]='Форма ввода'!$C$4)=1,MAX($H$1:H11)+1,\"\"),\"\")","v":""},{"$f":"IFERROR(IF(COUNTIFS($A$2:A12,'Форма ввода'!$C$4,$D$2:D12,D12)*(Привязка[[#This Row],[Инженер]]='Форма ввода'!$C$4)=1,MAX($I$1:I11)+1,\"\"),\"\")","v":""},null,{"$f":"IFERROR(INDEX(Привязка[Инженер],MATCH(ROW()-1,IDs[AppID],)),\" \")","v":" "},{"$f":"IFERROR(INDEX(Привязка[Клиент],MATCH(ROW()-1,IDs[ClientID],)),\" \")","v":" "},{"$f":"IFERROR(INDEX(Привязка[Оборудование],MATCH(ROW()-1,IDs[InstrID],)),\" \")","v":" "},{"$f":"IFERROR(INDEX(Привязка[Серийник],MATCH(ROW()-1,IDs[SerialID],)),\" \")","v":" "}]
[null,null,null,null,null,{"$f":"IF(COUNTIF($A$2:A13,A13)=1,MAX($F$1:F12)+1,\"\")","v":""},{"$f":"IFERROR(IF(COUNTIFS($A$2:A13,'Форма ввода'!$C$4,$B$2:B13,B13)*(Привязка[[#This Row],[Инженер]]='Форма ввода'!$C$4)=1,MAX($G$1:G12)+1,\"\"),\"\")","v":""},{"$f":"IFERROR(IF(COUNTIFS($A$2:A13,'Форма ввода'!$C$4,$C$2:C13,C13)*(Привязка[[#This Row],[Инженер]]='Форма ввода'!$C$4)=1,MAX($H$1:H12)+1,\"\"),\"\")","v":""},{"$f":"IFERROR(IF(COUNTIFS($A$2:A13,'Форма ввода'!$C$4,$D$2:D13,D13)*(Привязка[[#This Row],[Инженер]]='Форма ввода'!$C$4)=1,MAX($I$1:I12)+1,\"\"),\"\")","v":""},null,{"$f":"IFERROR(INDEX(Привязка[Инженер],MATCH(ROW()-1,IDs[AppID],)),\" \")","v":" "},{"$f":"IFERROR(INDEX(Привязка[Клиент],MATCH(ROW()-1,IDs[ClientID],)),\" \")","v":" "},{"$f":"IFERROR(INDEX(Привязка[Оборудование],MATCH(ROW()-1,IDs[InstrID],)),\" \")","v":" "},{"$f":"IFERROR(INDEX(Привязка[Серийник],MATCH(ROW()-1,IDs[SerialID],)),\" \")","v":" "}]
[null,null,null,null,null,{"$f":"IF(COUNTIF($A$2:A14,A14)=1,MAX($F$1:F13)+1,\"\")","v":""},{"$f":"IFERROR(IF(COUNTIFS($A$2:A14,'Форма ввода'!$C$4,$B$2:B14,B14)*(Привязка[[#This Row],[Инженер]]='Форма ввода'!$C$4)=1,MAX($G$1:G13)+1,\"\"),\"\")","v":""},{"$f":"IFERROR(IF(COUNTIFS($A$2:A14,'Форма ввода'!$C$4,$C$2:C14,C14)*(Привязка[[#This Row],[Инженер]]='Форма ввода'!$C$4)=1,MAX($H$1:H13)+1,\"\"),\"\")","v":""},{"$f":"IFERROR(IF(COUNTIFS($A$2:A14,'Форма ввода'!$C$4,$D$2:D14,D14)*(Привязка[[#This Row],[Инженер]]='Форма ввода'!$C$4)=1,MAX($I$1:I13)+1,\"\"),\"\")","v":""},null,{"$f":"IFERROR(INDEX(Привязка[Инженер],MATCH(ROW()-1,IDs[AppID],)),\" \")","v":" "},{"$f":"IFERROR(INDEX(Привязка[Клиент],MATCH(ROW()-1,IDs[ClientID],)),\" \")","v":" "},{"$f":"IFERROR(INDEX(Привязка[Оборудование],MATCH(ROW()-1,IDs[InstrID],)),\" \")","v":" "},{"$f":"IFERROR(INDEX(Привязка[Серийник],MATCH(ROW()-1,IDs[SerialID],)),\" \")","v":" "}]
[null,null,null,null,null,{"$f":"IF(COUNTIF($A$2:A15,A15)=1,MAX($F$1:F14)+1,\"\")","v":""},{"$f":"IFERROR(IF(COUNTIFS($A$2:A15,'Форма ввода'!$C$4,$B$2:B15,B15)*(Привязка[[#This Row],[Инженер]]='Форма ввода'!$C$4)=1,MAX($G$1:G14)+1,\"\"),\"\")","v":""},{"$f":"IFERROR(IF(COUNTIFS($A$2:A15,'Форма ввода'!$C$4,$C$2:C15,C15)*(Привязка[[#This Row],[Инженер]]='Форма ввода'!$C$4)=1,MAX($H$1:H14)+1,\"\"),\"\")","v":""},{"$f":"IFERROR(IF(COUNTIFS($A$2:A15,'Форма ввода'!$C$4,$D$2:D15,D15)*(Привязка[[#This Row],[Инженер]]='Форма ввода'!$C$4)=1,MAX($I$1:I14)+1,\"\"),\"\")","v":""},null,{"$f":"IFERROR(INDEX(Привязка[Инженер],MATCH(ROW()-1,IDs[AppID],)),\" \")","v":" "},{"$f":"IFERROR(INDEX(Привязка[Клиент],MATCH(ROW()-1,IDs[ClientID],)),\" \")","v":" "},{"$f":"IFERROR(INDEX(Привязка[Оборудование],MATCH(ROW()-1,IDs[InstrID],)),\" \")","v":" "},{"$f":"IFERROR(INDEX(Привязка[Серийник],MATCH(ROW()-1,IDs[SerialID],)),\" \")","v":" "}]
[null,null,null,null,null,{"$f":"IF(COUNTIF($A$2:A16,A16)=1,MAX($F$1:F15)+1,\"\")","v":""},{"$f":"IFERROR(IF(COUNTIFS($A$2:A16,'Форма ввода'!$C$4,$B$2:B16,B16)*(Привязка[[#This Row],[Инженер]]='Форма ввода'!$C$4)=1,MAX($G$1:G15)+1,\"\"),\"\")","v":""},{"$f":"IFERROR(IF(COUNTIFS($A$2:A16,'Форма ввода'!$C$4,$C$2:C16,C16)*(Привязка[[#This Row],[Инженер]]='Форма ввода'!$C$4)=1,MAX($H$1:H15)+1,\"\"),\"\")","v":""},{"$f":"IFERROR(IF(COUNTIFS($A$2:A16,'Форма ввода'!$C$4,$D$2:D16,D16)*(Привязка[[#This Row],[Инженер]]='Форма ввода'!$C$4)=1,MAX($I$1:I15)+1,\"\"),\"\")","v":""},null,{"$f":"IFERROR(INDEX(Привязка[Инженер],MATCH(ROW()-1,IDs[AppID],)),\" \")","v":" "},{"$f":"IFERROR(INDEX(Привязка[Клиент],MATCH(ROW()-1,IDs[ClientID],)),\" \")","v":" "},{"$f":"IFERROR(INDEX(Привязка[Оборудование],MATCH(ROW()-1,IDs[InstrID],)),\" \")","v":" "},{"$f":"IFERROR(INDEX(Привязка[Серийник],MATCH(ROW()-1,IDs[SerialID],)),\" \")","v":" "}]
[null,null,null,null,null,{"$f":"IF(COUNTIF($A$2:A17,A17)=1,MAX($F$1:F16)+1,\"\")","v":""},{"$f":"IFERROR(IF(COUNTIFS($A$2:A17,'Форма ввода'!$C$4,$B$2:B17,B17)*(Привязка[[#This Row],[Инженер]]='Форма ввода'!$C$4)=1,MAX($G$1:G16)+1,\"\"),\"\")","v":""},{"$f":"IFERROR(IF(COUNTIFS($A$2:A17,'Форма ввода'!$C$4,$C$2:C17,C17)*(Привязка[[#This Row],[Инженер]]='Форма ввода'!$C$4)=1,MAX($H$1:H16)+1,\"\"),\"\")","v":""},{"$f":"IFERROR(IF(COUNTIFS($A$2:A17,'Форма ввода'!$C$4,$D$2:D17,D17)*(Привязка[[#This Row],[Инженер]]='Форма ввода'!$C$4)=1,MAX($I$1:I16)+1,\"\"),\"\")","v":""},null,{"$f":"IFERROR(INDEX(Привязка[Инженер],MATCH(ROW()-1,IDs[AppID],)),\" \")","v":" "},{"$f":"IFERROR(INDEX(Привязка[Клиент],MATCH(ROW()-1,IDs[ClientID],)),\" \")","v":" "},{"$f":"IFERROR(INDEX(Привязка[Оборудование],MATCH(ROW()-1,IDs[InstrID],)),\" \")","v":" "},{"$f":"IFERROR(INDEX(Привязка[Серийник],MATCH(ROW()-1,IDs[SerialID],)),\" \")","v":" "}]
[null,null,null,null,null,{"$f":"IF(COUNTIF($A$2:A18,A18)=1,MAX($F$1:F17)+1,\"\")","v":""},{"$f":"IFERROR(IF(COUNTIFS($A$2:A18,'Форма ввода'!$C$4,$B$2:B18,B18)*(Привязка[[#This Row],[Инженер]]='Форма ввода'!$C$4)=1,MAX($G$1:G17)+1,\"\"),\"\")","v":""},{"$f":"IFERROR(IF(COUNTIFS($A$2:A18,'Форма ввода'!$C$4,$C$2:C18,C18)*(Привязка[[#This Row],[Инженер]]='Форма ввода'!$C$4)=1,MAX($H$1:H17)+1,\"\"),\"\")","v":""},{"$f":"IFERROR(IF(COUNTIFS($A$2:A18,'Форма ввода'!$C$4,$D$2:D18,D18)*(Привязка[[#This Row],[Инженер]]='Форма ввода'!$C$4)=1,MAX($I$1:I17)+1,\"\"),\"\")","v":""},null,{"$f":"IFERROR(INDEX(Привязка[Инженер],MATCH(ROW()-1,IDs[AppID],)),\" \")","v":" "},{"$f":"IFERROR(INDEX(Привязка[Клиент],MATCH(ROW()-1,IDs[ClientID],)),\" \")","v":" "},{"$f":"IFERROR(INDEX(Привязка[Оборудование],MATCH(ROW()-1,IDs[InstrID],)),\" \")","v":" "},{"$f":"IFERROR(INDEX(Привязка[Серийник],MATCH(ROW()-1,IDs[SerialID],)),\" \")","v":" "}]
[null,null,null,null,null,{"$f":"IF(COUNTIF($A$2:A19,A19)=1,MAX($F$1:F18)+1,\"\")","v":""},{"$f":"IFERROR(IF(COUNTIFS($A$2:A19,'Форма ввода'!$C$4,$B$2:B19,B19)*(Привязка[[#This Row],[Инженер]]='Форма ввода'!$C$4)=1,MAX($G$1:G18)+1,\"\"),\"\")","v":""},{"$f":"IFERROR(IF(COUNTIFS($A$2:A19,'Форма ввода'!$C$4,$C$2:C19,C19)*(Привязка[[#This Row],[Инженер]]='Форма ввода'!$C$4)=1,MAX($H$1:H18)+1,\"\"),\"\")","v":""},{"$f":"IFERROR(IF(COUNTIFS($A$2:A19,'Форма ввода'!$C$4,$D$2:D19,D19)*(Привязка[[#This Row],[Инженер]]='Форма ввода'!$C$4)=1,MAX($I$1:I18)+1,\"\"),\"\")","v":""},null,{"$f":"IFERROR(INDEX(Привязка[Инженер],MATCH(ROW()-1,IDs[AppID],)),\" \")","v":" "},{"$f":"IFERROR(INDEX(Привязка[Клиент],MATCH(ROW()-1,IDs[ClientID],)),\" \")","v":" "},{"$f":"IFERROR(INDEX(Привязка[Оборудование],MATCH(ROW()-1,IDs[InstrID],)),\" \")","v":" "},{"$f":"IFERROR(INDEX(Привязка[Серийник],MATCH(ROW()-1,IDs[SerialID],)),\" \")","v":" "}]
[null,null,null,null,null,{"$f":"IF(COUNTIF($A$2:A20,A20)=1,MAX($F$1:F19)+1,\"\")","v":""},{"$f":"IFERROR(IF(COUNTIFS($A$2:A20,'Форма ввода'!$C$4,$B$2:B20,B20)*(Привязка[[#This Row],[Инженер]]='Форма ввода'!$C$4)=1,MAX($G$1:G19)+1,\"\"),\"\")","v":""},{"$f":"IFERROR(IF(COUNTIFS($A$2:A20,'Форма ввода'!$C$4,$C$2:C20,C20)*(Привязка[[#This Row],[Инженер]]='Форма ввода'!$C$4)=1,MAX($H$1:H19)+1,\"\"),\"\")","v":""},{"$f":"IFERROR(IF(COUNTIFS($A$2:A20,'Форма ввода'!$C$4,$D$2:D20,D20)*(Привязка[[#This Row],[Инженер]]='Форма ввода'!$C$4)=1,MAX($I$1:I19)+1,\"\"),\"\")","v":""},null,{"$f":"IFERROR(INDEX(Привязка[Инженер],MATCH(ROW()-1,IDs[AppID],)),\" \")","v":" "},{"$f":"IFERROR(INDEX(Привязка[Клиент],MATCH(ROW()-1,IDs[ClientID],)),\" \")","v":" "},{"$f":"IFERROR(INDEX(Привязка[Оборудование],MATCH(ROW()-1,IDs[InstrID],)),\" \")","v":" "},{"$f":"IFERROR(INDEX(Привязка[Серийник],MATCH(ROW()-1,IDs[SerialID],)),\" \")","v":" "}]
[null,null,null,null,null,{"$f":"IF(COUNTIF($A$2:A21,A21)=1,MAX($F$1:F20)+1,\"\")","v":""},{"$f":"IFERROR(IF(COUNTIFS($A$2:A21,'Форма ввода'!$C$4,$B$2:B21,B21)*(Привязка[[#This Row],[Инженер]]='Форма ввода'!$C$4)=1,MAX($G$1:G20)+1,\"\"),\"\")","v":""},{"$f":"IFERROR(IF(COUNTIFS($A$2:A21,'Форма ввода'!$C$4,$C$2:C21,C21)*(Привязка[[#This Row],[Инженер]]='Форма ввода'!$C$4)=1,MAX($H$1:H20)+1,\"\"),\"\")","v":""},{"$f":"IFERROR(IF(COUNTIFS($A$2:A21,'Форма ввода'!$C$4,$D$2:D21,D21)*(Привязка[[#This Row],[Инженер]]='Форма ввода'!$C$4)=1,MAX($I$1:I20)+1,\"\"),\"\")","v":""},null,{"$f":"IFERROR(INDEX(Привязка[Инженер],MATCH(ROW()-1,IDs[AppID],)),\" \")","v":" "},{"$f":"IFERROR(INDEX(Привязка[Клиент],MATCH(ROW()-1,IDs[ClientID],)),\" \")","v":" "},{"$f":"IFERROR(INDEX(Привязка[Оборудование],MATCH(ROW()-1,IDs[InstrID],)),\" \")","v":" "},{"$f":"IFERROR(INDEX(Привязка[Серийник],MATCH(ROW()-1,IDs[SerialID],)),\" \")","v":" "}]
[null,null,null,null,null,{"$f":"IF(COUNTIF($A$2:A22,A22)=1,MAX($F$1:F21)+1,\"\")","v":""},{"$f":"IFERROR(IF(COUNTIFS($A$2:A22,'Форма ввода'!$C$4,$B$2:B22,B22)*(Привязка[[#This Row],[Инженер]]='Форма ввода'!$C$4)=1,MAX($G$1:G21)+1,\"\"),\"\")","v":""},{"$f":"IFERROR(IF(COUNTIFS($A$2:A22,'Форма ввода'!$C$4,$C$2:C22,C22)*(Привязка[[#This Row],[Инженер]]='Форма ввода'!$C$4)=1,MAX($H$1:H21)+1,\"\"),\"\")","v":""},{"$f":"IFERROR(IF(COUNTIFS($A$2:A22,'Форма ввода'!$C$4,$D$2:D22,D22)*(Привязка[[#This Row],[Инженер]]='Форма ввода'!$C$4)=1,MAX($I$1:I21)+1,\"\"),\"\")","v":""},null,{"$f":"IFERROR(INDEX(Привязка[Инженер],MATCH(ROW()-1,IDs[AppID],)),\" \")","v":" "},{"$f":"IFERROR(INDEX(Привязка[Клиент],MATCH(ROW()-1,IDs[ClientID],)),\" \")","v":" "},{"$f":"IFERROR(INDEX(Привязка[Оборудование],MATCH(ROW()-1,IDs[InstrID],)),\" \")","v":" "},{"$f":"IFERROR(INDEX(Привязка[Серийник],MATCH(ROW()-1,IDs[SerialID],)),\" \")","v":" "}]
[null,null,null,null,null,{"$f":"IF(COUNTIF($A$2:A23,A23)=1,MAX($F$1:F22)+1,\"\")","v":""},{"$f":"IFERROR(IF(COUNTIFS($A$2:A23,'Форма ввода'!$C$4,$B$2:B23,B23)*(Привязка[[#This Row],[Инженер]]='Форма ввода'!$C$4)=1,MAX($G$1:G22)+1,\"\"),\"\")","v":""},{"$f":"IFERROR(IF(COUNTIFS($A$2:A23,'Форма ввода'!$C$4,$C$2:C23,C23)*(Привязка[[#This Row],[Инженер]]='Форма ввода'!$C$4)=1,MAX($H$1:H22)+1,\"\"),\"\")","v":""},{"$f":"IFERROR(IF(COUNTIFS($A$2:A23,'Форма ввода'!$C$4,$D$2:D23,D23)*(Привязка[[#This Row],[Инженер]]='Форма ввода'!$C$4)=1,MAX($I$1:I22)+1,\"\"),\"\")","v":""},null,{"$f":"IFERROR(INDEX(Привязка[Инженер],MATCH(ROW()-1,IDs[AppID],)),\" \")","v":" "},{"$f":"IFERROR(INDEX(Привязка[Клиент],MATCH(ROW()-1,IDs[ClientID],)),\" \")","v":" "},{"$f":"IFERROR(INDEX(Привязка[Оборудование],MATCH(ROW()-1,IDs[InstrID],)),\" \")","v":" "},{"$f":"IFERROR(INDEX(Привязка[Серийник],MATCH(ROW()-1,IDs[SerialID],)),\" \")","v":" "}]
[null,null,null,null,null,{"$f":"IF(COUNTIF($A$2:A24,A24)=1,MAX($F$1:F23)+1,\"\")","v":""},{"$f":"IFERROR(IF(COUNTIFS($A$2:A24,'Форма ввода'!$C$4,$B$2:B24,B24)*(Привязка[[#This Row],[Инженер]]='Форма ввода'!$C$4)=1,MAX($G$1:G23)+1,\"\"),\"\")","v":""},{"$f":"IFERROR(IF(COUNTIFS($A$2:A24,'Форма ввода'!$C$4,$C$2:C24,C24)*(Привязка[[#This Row],[Инженер]]='Форма ввода'!$C$4)=1,MAX($H$1:H23)+1,\"\"),\"\")","v":""},{"$f":"IFERROR(IF(COUNTIFS($A$2:A24,'Форма ввода'!$C$4,$D$2:D24,D24)*(Привязка[[#This Row],[Инженер]]='Форма ввода'!$C$4)=1,MAX($I$1:I23)+1,\"\"),\"\")","v":""},null,{"$f":"IFERROR(INDEX(Привязка[Инженер],MATCH(ROW()-1,IDs[AppID],)),\" \")","v":" "},{"$f":"IFERROR(INDEX(Привязка[Клиент],MATCH(ROW()-1,IDs[ClientID],)),\" \")","v":" "},{"$f":"IFERROR(INDEX(Привязка[Оборудование],MATCH(ROW()-1,IDs[InstrID],)),\" \")","v":" "},{"$f":"IFERROR(INDEX(Привязка[Серийник],MATCH(ROW()-1,IDs[SerialID],)),\" \")","v":" "}]
[]
[null,null,null,null,null,{"$f":"IF(COUNTIF($A$2:A10,A13)=1,MAX($F$1:F25)+1,\"\")","v":""}]
[null,null,null,null,null,{"$f":"IF(COUNTIF($A$2:A16,A14)=1,MAX($F$1:F26)+1,\"\")","v":""}]
[null,null,null,null,null,{"$f":"IF(COUNTIF($A$2:A15,A15)=1,MAX($F$1:F27)+1,\"\")","v":""}]
[null,null,null,null,null,{"$f":"IF(COUNTIF($A$2:A16,A16)=1,MAX($F$1:F28)+1,\"\")","v":""}]
[null,null,null,null,null,{"$f":"IF(COUNTIF($A$2:A17,A17)=1,MAX($F$1:F29)+1,\"\")","v":""}]
[null,null,null,null,null,{"$f":"IF(COUNTIF($A$2:A18,A18)=1,MAX($F$1:F30)+1,\"\")","v":""}]
[null,null,null,null,null,{"$f":"IF(COUNTIF($A$2:A19,A19)=1,MAX($F$1:F31)+1,\"\")","v":""}]
[null,null,null,null,null,{"$f":"IF(COUNTIF($A$2:A20,A20)=1,MAX($F$1:F32)+1,\"\")","v":""}]